fUST/lending_fUST_20250719
["ID","MTS","AMOUNT","RATE_DAILY","PERIOD"]
[373263329,1752925850525,-460.0,0.00019573,2]
[373263331,1752925850535,-789.44,0.00019573,2]
[373263332,1752925850544,-460.0,0.00019573,2]
[373263334,1752925850553,-360.0,0.00019587,2]
[373263336,1752925850562,-17671.62993046,0.00019748,2]
[373263337,1752925850573,-151.0,0.00019765,2]
[373263339,1752925850582,-705.18445603,0.0001979,5]
[373263341,1752925850592,-6652.08970238,0.00019831,2]
[373263342,1752925850601,-885.62,0.00019845,2]
[373263344,1752925850611,-460.0,0.00019846,2]
[373263346,1752925850620,-2041.8,0.00019846,2]
[373263348,1752925850630,-460.0,0.00019846,2]
[373263349,1752925850640,-1525.65,0.00019846,2]
[373263351,1752925850652,-1361.02,0.00019846,2]
[373263353,1752925850663,-1619.42,0.00019846,2]
[373263355,1752925850672,-460.0,0.00019846,2]
[373263356,1752925850681,-471.24,0.00019846,2]
[373263358,1752925850692,-682.29,0.00019846,2]
[373263360,1752925850701,-665.74,0.00019846,2]
[373263361,1752925850711,-460.0,0.00019846,2]
[373263363,1752925850720,-692.91,0.00019846,2]
[373263365,1752925850730,-1750.3,0.00019847,2]
[373263366,1752925850739,-460.0,0.00019847,2]
[373263368,1752925850749,-1046.46,0.00019847,2]
[373263370,1752925850758,-777.78,0.00019847,2]
[373263372,1752925850768,-621.82,0.00019847,2]
[373263373,1752925850777,-460.0,0.00019847,2]
[373263375,1752925850787,-789.44,0.00019847,2]
[373263377,1752925850796,-460.0,0.00019847,2]
[373263378,1752925850805,-500.0,0.00019865,2]
[373263380,1752925850815,-500.0,0.00019865,2]
[373263382,1752925850824,-6684.62468812,0.00019894,2]
[373263384,1752925850834,-700.0,0.00019937,2]
[373263385,1752925850843,-215.0738,0.00019964,2]
[373263387,1752925850854,-151.0,0.00019973,2]
[373263389,1752925850864,-194.0,0.00019974,2]
[373263390,1752925850874,-151.0,0.0002,2]
[373263392,1752925850884,-173.416,0.0002,2]
[373263394,1752925850894,-300.40023785,0.0002,2]
[373263395,1752925850905,-649.403,0.00020009,2]
[373263397,1752925850915,-2156.0,0.00020009,2]
[373263399,1752925850924,-968.0,0.00020009,2]
[373263400,1752925850933,-150.0,0.00020009,2]
[373263402,1752925850942,-194.0,0.00020088,2]
[373263404,1752925850951,-6652.08970238,0.00020107,2]
[373263406,1752925850961,-885.62,0.00020119,2]
[373263407,1752925850970,-460.0,0.0002012,2]
[373263409,1752925850979,-2041.8,0.0002012,2]
[373263411,1752925850989,-460.0,0.0002012,2]
[373263412,1752925850999,-1525.65,0.0002012,2]
[373263414,1752925851008,-1361.02,0.0002012,2]
[373263415,1752925851018,-1619.42,0.0002012,2]
[373263417,1752925851027,-460.0,0.0002012,2]
[373263419,1752925851037,-471.24,0.0002012,2]
[373263420,1752925851046,-682.29,0.0002012,2]
[373263422,1752925851056,-665.74,0.0002012,2]
[373263424,1752925851066,-460.0,0.0002012,2]
[373263426,1752925851081,-692.91,0.0002012,2]
[373263427,1752925851090,-1750.3,0.00020121,2]
[373263429,1752925851099,-460.0,0.00020121,2]
[373263431,1752925851109,-1046.46,0.00020121,2]
[373263432,1752925851119,-777.78,0.00020121,2]
[373263434,1752925851128,-621.82,0.00020121,2]
[373263436,1752925851138,-460.0,0.00020121,2]
[373263437,1752925851150,-789.44,0.00020121,2]
[373263439,1752925851159,-460.0,0.00020121,2]
[373263441,1752925851169,-460.0,0.00020135,2]
[373263442,1752925851179,-194.0,0.00020137,2]
[373263444,1752925851189,-536.71,0.00020143,2]
[373263446,1752925851199,-466.936843,0.00020187,2]
[373263447,1752925851209,-151.0,0.000202,4]
[373263449,1752925851223,-194.0,0.00020278,2]
[373263451,1752925851233,-194.0,0.0002028,2]
[373263452,1752925851243,-194.0,0.00020365,2]
[373263454,1752925851253,-6652.08970238,0.00020383,3]
[373263456,1752925851265,-885.62,0.00020393,2]
[373263457,1752925851274,-460.0,0.00020394,2]
[373263459,1752925851283,-2041.8,0.00020394,2]
[373263461,1752925851295,-521.1658635,0.00020394,2]
[373263462,1752925851304,-1525.65,0.00020394,2]
[373263464,1752925851314,-1361.02,0.00020394,2]
[373263466,1752925851323,-1619.42,0.00020394,2]
[373263467,1752925851332,-460.0,0.00020394,2]
[373263469,1752925851342,-471.24,0.00020394,2]
[373263471,1752925851351,-682.29,0.00020394,2]
[373263472,1752925851360,-665.74,0.00020394,2]
[373263474,1752925851369,-460.0,0.00020394,2]
[373263476,1752925851379,-692.91,0.00020394,2]
[373263477,1752925851388,-1750.3,0.00020395,2]
[373263479,1752925851402,-460.0,0.00020395,2]
[373263481,1752925851411,-1046.46,0.00020395,2]
[373263482,1752925851421,-777.78,0.00020395,2]
[373263484,1752925851431,-621.82,0.00020395,2]
[373263486,1752925851440,-489.75,0.00020395,2]
[373263487,1752925851450,-789.44,0.00020395,2]
[373263489,1752925851459,-460.0,0.00020395,2]
[373263491,1752925851469,-194.0,0.00020403,2]
[373263492,1752925851479,-194.0,0.00020412,2]
[373263494,1752925851489,-500.0,0.00020486,2]
[373263496,1752925851500,-347.65761145,0.00020486,2]
[373263497,1752925851509,-500.0,0.00020486,2]
[373263499,1752925851518,-500.0,0.00020486,2]
[373263501,1752925851527,-642.0,0.000205,2]
[373263502,1752925851537,-500.0,0.00020511,2]
[373263504,1752925851546,-500.0,0.00020511,2]
[373263506,1752925851555,-500.0,0.00020511,2]
[373263507,1752925851565,-501.4575332,0.00020511,2]
[373263509,1752925851575,-153.0,0.00020521,2]
[373263511,1752925851585,-153.0,0.00020521,2]
[373263513,1752925851594,-153.0,0.00020521,2]
[373263514,1752925851603,-153.0,0.00020521,2]
[373263516,1752925851612,-155.7628533,0.00020521,2]
[373263518,1752925851623,-153.0,0.00020521,2]
[373263519,1752925851632,-153.0,0.00020521,2]
[373263521,1752925851641,-153.0,0.00020521,2]
[373263523,1752925851655,-153.0,0.00020521,2]
[373263524,1752925851664,-153.0,0.00020521,2]
[373263526,1752925851674,-153.0,0.00020521,2]
[373263528,1752925851684,-153.0,0.00020521,2]
[373263529,1752925851693,-153.0,0.00020521,2]
[373263531,1752925851703,-153.0,0.00020521,2]
[373263533,1752925851713,-153.0,0.00020521,2]
[373263535,1752925851722,-306.0,0.00020521,2]
[373263536,1752925851731,-500.0,0.00020537,2]
[373263538,1752925851740,-151.0,0.00020537,2]
[373263540,1752925851749,-500.0,0.00020539,2]
[373263541,1752925851759,-500.0,0.00020539,2]
[373263543,1752925851768,-500.0,0.00020539,2]
[373263545,1752925851777,-500.0,0.00020539,2]
[373263546,1752925851786,-500.0,0.00020539,2]
[373263548,1752925851795,-205.88399558,0.00020539,2]
[373263550,1752925851805,-500.0,0.00020539,2]
[373263551,1752925851814,-151.16040528,0.00020539,2]
[373263553,1752925851823,-500.0,0.00020539,2]
[373263555,1752925851833,-500.0,0.00020539,2]
[373263556,1752925851843,-152.15572667,0.00020539,2]
[373263558,1752925851853,-500.0,0.00020539,2]
[373263560,1752925851863,-194.0,0.00020544,2]
[373263562,1752925851872,-500.0,0.00020547,2]
[373263563,1752925851882,-500.0,0.00020547,2]
[373263565,1752925851891,-500.0,0.00020547,2]
[373263567,1752925851904,-500.0,0.00020547,2]
[373263569,1752925851914,-500.0,0.00020547,2]
[373263570,1752925851923,-500.0,0.00020547,2]
[373263572,1752925851932,-500.0,0.00020547,2]
[373263574,1752925851942,-500.0,0.00020547,2]
[373263575,1752925851951,-500.0,0.00020547,2]
[373263577,1752925851961,-500.0,0.00020547,2]
[373263579,1752925851970,-500.0,0.00020547,2]
[373263580,1752925851979,-500.0,0.00020547,2]
[373263582,1752925851988,-500.0,0.00020547,2]
[373263584,1752925851997,-278.913314,0.00020547,2]
[373263585,1752925852007,-269.533577,0.00020547,2]
[373263587,1752925852015,-269.533577,0.00020547,2]
[373263589,1752925852025,-194.0,0.00020547,2]
[373263591,1752925852035,-544.72577825,0.00020549,2]
[373263592,1752925852044,-1661.31616322,0.00020549,2]
[373263594,1752925852054,-1661.31616322,0.00020549,2]
[373263596,1752925852063,-1661.31616322,0.00020549,2]
[373263597,1752925852073,-1661.31616322,0.00020549,2]
[373263599,1752925852082,-500.0,0.00020549,2]
[373263601,1752925852092,-1661.31616322,0.00020549,2]
[373263602,1752925852101,-1661.31616322,0.00020549,2]
[373263604,1752925852112,-1661.31616322,0.00020549,2]
[373263606,1752925852122,-1661.31616322,0.00020549,2]
[373263607,1752925852131,-1661.31616322,0.00020549,2]
[373263609,1752925852141,-1661.31616322,0.00020549,2]
[373263611,1752925852152,-1661.31616322,0.00020549,2]
[373263613,1752925852162,-1661.31616322,0.00020549,2]
[373263614,1752925852171,-1661.31616322,0.00020549,2]
[373263616,1752925852182,-1661.31616322,0.00020549,2]
[373263618,1752925852194,-1661.31616322,0.00020549,2]
[373263619,1752925852203,-1661.31616322,0.00020549,2]
[373263621,1752925852214,-500.0,0.00020553,2]
[373263623,1752925852227,-571.33485352,0.00020553,2]
[373263625,1752925852235,-500.0,0.00020553,2]
[373263627,1752925852245,-194.0,0.0002056,2]
[373263629,1752925852255,-151.0,0.00020565,2]
[373263631,1752925852266,-162.754641,0.00020565,2]
[373263633,1752925852275,-162.754641,0.00020565,2]
[373263635,1752925852284,-500.0,0.00020575,2]
[373263637,1752925852295,-158.17056156,0.00020575,2]
[373263639,1752925852305,-158.1691832,0.00020575,2]
[373263641,1752925852314,-677.682365,0.0002058,8]
[373263643,1752925852323,-500.0,0.00020595,2]
[373263645,1752925852333,-7103.83397184,0.00020595,2]
[373263646,1752925852342,-151.0,0.00020597,2]
[373263647,1752925852351,-151.0,0.00020597,2]
[373263648,1752925852360,-194.0,0.00020597,2]
[373263649,1752925852370,-407.28226249,0.00020619,2]
[373263650,1752925852379,-500.0,0.00020619,2]
[373263651,1752925852389,-244.357367,0.00020624,3]
[373263652,1752925852400,-6652.08970238,0.00020659,3]
[373263653,1752925852409,-151.0,0.00020659,2]
[373263654,1752925852419,-151.0,0.00020659,2]
[373263655,1752925852428,-151.959191,0.00020659,2]
[373263656,1752925852438,-151.0,0.00020659,2]
[373263657,1752925852448,-255.714936,0.00020659,2]
[373263658,1752925852457,-255.714936,0.00020659,2]
[373263659,1752925852467,-151.0,0.00020659,2]
[373263660,1752925852477,-151.0,0.00020659,2]
[373263661,1752925852486,-151.0,0.00020659,2]
[373263662,1752925852496,-151.0,0.00020659,2]
[373263663,1752925852506,-151.0,0.00020659,2]
[373263664,1752925852515,-1189.254076,0.00020659,2]
[373263665,1752925852525,-1189.254076,0.00020659,2]
[373263666,1752925852535,-476.34170116,0.0002066,3]
[373263667,1752925852544,-885.62,0.00020667,2]
[373263668,1752925852554,-460.0,0.00020668,2]
[373263669,1752925852564,-2041.8,0.00020668,2]
[373263670,1752925852670,-1525.65,0.00020668,2]
[373263671,1752925852680,-1361.02,0.00020668,2]
[373263672,1752925852691,-1619.42,0.00020668,2]
[373263673,1752925852701,-369.95713409,0.00020668,2]
[373263674,1752925852711,-241.60435553,0.00020668,2]
[373263728,1752925853278,-0.01381389,0.00016831,2]
[373263731,1752925853294,-1390.89618611,0.00016831,2]
[373263733,1752925853304,-460.0,0.00016831,2]
[373263735,1752925853314,-1390.91,0.00017105,2]
[373263737,1752925853323,-460.0,0.00017105,2]
[373263739,1752925853333,-1390.91,0.00017379,2]
[373263741,1752925853343,-460.0,0.00017379,2]
[373263743,1752925853353,-460.0,0.0001738,2]
[373263745,1752925853363,-1390.91,0.00017653,2]
[373263747,1752925853373,-460.0,0.00017653,2]
[373263749,1752925853383,-9.5236381,0.00017654,2]
[373263752,1752925853398,-450.4763619,0.00017654,2]
[373263754,1752925853407,-1390.91,0.00017927,2]
[373263756,1752925853416,-460.0,0.00017928,2]
[373263758,1752925853426,-1390.91,0.00018201,2]
[373263760,1752925853436,-460.0,0.00018202,2]
[373263762,1752925853446,-1390.91,0.00018475,2]
[373263764,1752925853457,-377.23012175,0.00018476,2]
[373263766,1752925853467,-348.35933762,0.00018476,2]
[373263768,1752925853477,-1390.91,0.00018749,2]
[373263770,1752925853487,-229.63564447,0.00020668,2]
[373263772,1752925853495,-682.29,0.00020668,2]
[373263774,1752925853505,-665.74,0.00020668,2]
[373263776,1752925853515,-460.0,0.00020668,2]
[373263778,1752925853524,-692.91,0.00020668,2]
[373263780,1752925853533,-1736.56871005,0.00020669,2]
[373263782,1752925853545,-13.73128995,0.00020669,2]
[373263784,1752925853555,-599.40934085,0.00020669,2]
[373263786,1752925853565,-1046.46,0.00020669,2]
[373263788,1752925853574,-288.9934379,0.00020669,2]
[373264155,1752925857391,-460.0,0.00016832,2]
[373264157,1752925857401,-151.0,0.00018476,2]
[373264159,1752925857412,-1390.91,0.00019023,2]
[373264161,1752925857422,-1390.91,0.00019297,2]
[373264163,1752925857432,-151.0,0.00019329,2]
[373264165,1752925857441,-1390.91,0.00019571,2]
[373264167,1752925857451,-1390.91,0.00019845,2]
[373264169,1752925857460,-1390.91,0.00020119,2]
[373264171,1752925857470,-1390.91,0.00020393,2]
[373264173,1752925857480,-151.0,0.0002051,2]
[373264175,1752925857490,-1390.91,0.00020667,2]
[373264177,1752925857499,-488.7865621,0.00020669,2]
[373264179,1752925857508,-621.82,0.00020669,2]
[373264181,1752925857517,-789.44,0.00020669,2]
[373264183,1752925857526,-460.0,0.00020669,2]
[373264185,1752925857536,-151.0,0.0002067,2]
[373264187,1752925857546,-151.0,0.0002067,2]
[373264189,1752925857555,-160.0,0.00020678,2]
[373264191,1752925857564,-160.0,0.00020678,2]
[373264193,1752925857574,-160.0,0.00020678,2]
[373264195,1752925857583,-160.0,0.00020678,2]
[373264197,1752925857593,-160.0,0.00020678,2]
[373264199,1752925857603,-160.0,0.00020678,2]
[373264201,1752925857613,-1752.0,0.00020678,2]
[373264203,1752925857622,-1752.0,0.00020678,2]
[373264205,1752925857632,-1752.0,0.00020678,2]
[373264207,1752925857641,-1752.0,0.00020678,2]
[373264209,1752925857651,-1752.0,0.00020678,2]
[373264211,1752925857660,-1752.0,0.00020678,2]
[373264213,1752925857670,-1204.66513091,0.00020678,2]
[373264215,1752925857679,-500.0,0.0002068,2]
[373264217,1752925857689,-500.0,0.0002068,2]
[373264219,1752925857698,-500.0,0.0002068,2]
[373264221,1752925857708,-560.0,0.00020683,2]
[373264223,1752925857719,-214.52603969,0.000207,3]
[373264225,1752925857728,-12612.80205064,0.000207,3]
[373264227,1752925857737,-500.0,0.00020753,2]
[373264229,1752925857746,-501.55540083,0.00020753,2]
[373264231,1752925857755,-158.46463138,0.00020753,2]
[373264233,1752925857764,-158.1739454,0.00020753,2]
[373264235,1752925857774,-151.0,0.000208,3]
[373264237,1752925857783,-800.0,0.0002084,2]
[373264239,1752925857792,-6652.08970238,0.00020934,4]
[373264241,1752925857801,-885.62,0.00020941,2]
[373264242,1752925857810,-1390.91,0.00020941,2]
[373264244,1752925857820,-460.0,0.00020942,2]
[373264246,1752925857829,-2041.8,0.00020942,2]
[373264248,1752925857839,-1525.65,0.00020942,2]
[373264250,1752925857848,-1361.02,0.00020942,2]
[373264252,1752925857858,-1619.42,0.00020942,2]
[373264254,1752925857867,-471.24,0.00020942,2]
[373264256,1752925857877,-682.29,0.00020942,2]
[373264258,1752925857886,-665.74,0.00020942,2]
[373264260,1752925857896,-237.43151863,0.00020942,2]
[373264262,1752925857906,-692.91,0.00020942,2]
[373264264,1752925857915,-1750.3,0.00020943,2]
[373264266,1752925857925,-151.0,0.00020943,2]
[373264268,1752925857934,-151.0,0.00020943,2]
[373264270,1752925857944,-301.097827,0.00020943,2]
[373264272,1752925857953,-301.097827,0.00020943,2]
[373264274,1752925857962,-1046.46,0.00020943,2]
[373264276,1752925857971,-777.78,0.00020943,2]
[373264278,1752925857981,-621.82,0.00020943,2]
[373264280,1752925857990,-789.44,0.00020943,2]
[373264282,1752925858000,-460.0,0.00020943,2]
[373264284,1752925858009,-244.357367,0.00020946,2]
[373264286,1752925858018,-500.0,0.00020947,2]
[373264288,1752925858027,-500.0,0.00020947,2]
[373264290,1752925858037,-194.0,0.0002099,2]
[373264292,1752925858046,-151.0,0.00021,2]
[373264294,1752925858055,-1522.67,0.00021,2]
[373264296,1752925858065,-398.6667,0.00021,2]
[373264298,1752925858074,-3000.0,0.0002101,2]
[373264300,1752925858083,-3000.0,0.0002102,2]
[373264302,1752925858093,-3000.0,0.0002103,2]
[373264304,1752925858103,-151.0,0.0002103,2]
[373264306,1752925858113,-151.0,0.0002103,2]
[373264308,1752925858122,-151.0,0.0002103,2]
[373264310,1752925858132,-700.0,0.00021033,2]
[373264312,1752925858141,-1006.91472063,0.00021034,2]
[373264314,1752925858151,-501.72348079,0.00021034,2]
[373264316,1752925858161,-1000.0,0.00021034,2]
[373264318,1752925858171,-3000.0,0.0002104,2]
[373264320,1752925858180,-3000.0,0.0002105,2]
[373264322,1752925858189,-1000.0,0.00021058,2]
[373264324,1752925858198,-3000.0,0.0002106,2]
[373264326,1752925858207,-151.0,0.0002106,2]
[373264328,1752925858217,-151.0,0.0002106,2]
[373264330,1752925858230,-3000.0,0.0002107,2]
[373264332,1752925858239,-3000.0,0.0002108,2]
[373264334,1752925858248,-151.0,0.0002108,2]
[373264336,1752925858258,-353.34083813,0.00021085,2]
[373264338,1752925858267,-194.0,0.00021086,2]
[373264340,1752925858277,-1000.0,0.00021087,2]
[373264342,1752925858286,-1000.0,0.00021087,2]
[373264344,1752925858296,-1000.0,0.00021087,2]
[373264346,1752925858306,-1000.0,0.00021087,2]
[373264347,1752925858315,-1000.0,0.00021087,2]
[373264349,1752925858325,-1000.0,0.00021087,2]
[373264351,1752925858334,-165.17850168,0.00021087,2]
[373264353,1752925858343,-605.85948016,0.00021087,2]
[373264355,1752925858352,-1000.0,0.00021087,2]
[373264357,1752925858362,-3000.0,0.0002109,2]
[373264359,1752925858371,-3000.0,0.000211,2]
[373264361,1752925858380,-151.0,0.000211,2]
[373264363,1752925858389,-1000.0,0.00021101,2]
[373264365,1752925858399,-1006.76550983,0.00021101,2]
[373264367,1752925858410,-3000.0,0.0002111,2]
[373264369,1752925858419,-269.533577,0.00021113,2]
[373264371,1752925858429,-269.533577,0.00021113,2]
[373264373,1752925858438,-151.0,0.00021117,2]
[373264375,1752925858448,-5888.0,0.00021117,2]
[373264377,1752925858457,-3000.0,0.0002112,2]
[373264379,1752925858467,-151.0,0.0002112,2]
[373264381,1752925858476,-162.754641,0.0002112,2]
[373264383,1752925858486,-162.754641,0.0002112,2]
[373264385,1752925858495,-194.0,0.0002112,2]
[373264387,1752925858505,-500.85482562,0.00021123,2]
[373264389,1752925858514,-3000.0,0.0002113,2]
[373264391,1752925858523,-151.0,0.0002113,2]
[373264393,1752925858533,-151.0,0.0002113,2]
[373264395,1752925858542,-151.0,0.0002113,2]
[373264397,1752925858552,-3000.0,0.0002114,2]
[373264399,1752925858562,-1000.0,0.00021143,2]
[373264401,1752925858571,-3000.0,0.0002115,2]
[373264403,1752925858582,-151.0,0.0002115,2]
[373264405,1752925858591,-151.0,0.0002115,2]
[373264407,1752925858601,-151.0,0.0002115,2]
[373264409,1752925858611,-3000.0,0.0002116,2]
[373264411,1752925858620,-151.0,0.00021167,2]
[373264413,1752925858629,-255.714936,0.00021167,2]
[373264415,1752925858638,-255.714936,0.00021167,2]
[373264417,1752925858647,-3000.0,0.0002117,2]
[373264419,1752925858658,-151.0,0.0002117,2]
[373264420,1752925858667,-151.0,0.0002117,2]
[373264421,1752925858676,-151.0,0.0002117,2]
[373264422,1752925858686,-151.0,0.0002117,2]
[373264423,1752925858704,-1189.254076,0.0002117,2]
[373264424,1752925858717,-1189.254076,0.0002117,2]
[373264425,1752925858727,-194.0,0.00021177,2]
[373264427,1752925858737,-3000.0,0.0002118,2]
[373264429,1752925858746,-3000.0,0.0002119,2]
[373264431,1752925858755,-3000.0,0.000212,2]
[373264433,1752925858765,-151.0,0.000212,3]
[373264435,1752925858774,-3000.0,0.0002121,2]
[373264437,1752925858784,-6652.08970238,0.0002121,4]
[373264439,1752925858794,-882.0,0.00021212,2]
[373264441,1752925858803,-500.0,0.00021212,2]
[373264443,1752925858814,-885.62,0.00021215,2]
[373264445,1752925858823,-1390.91,0.00021215,2]
[373264447,1752925858833,-460.0,0.00021216,2]
[373264449,1752925858842,-2041.8,0.00021216,2]
[373264451,1752925858851,-1525.65,0.00021216,2]
[373264453,1752925858861,-1361.02,0.00021216,2]
[373264455,1752925858870,-1619.42,0.00021216,2]
[373264457,1752925858879,-471.24,0.00021216,2]
[373264459,1752925858888,-682.29,0.00021216,2]
[373264461,1752925858897,-665.74,0.00021216,2]
[373264463,1752925858907,-692.91,0.00021216,2]
[373264465,1752925858917,-1750.3,0.00021217,2]
[373264467,1752925858926,-1046.46,0.00021217,2]
[373264469,1752925858935,-777.78,0.00021217,2]
[373264471,1752925858944,-621.82,0.00021217,2]
[373264473,1752925858954,-789.44,0.00021217,2]
[373264475,1752925858964,-460.0,0.00021217,2]
[373264477,1752925858974,-194.0,0.00021219,2]
[373264479,1752925858984,-3000.0,0.0002122,2]
[373264481,1752925858993,-500.0,0.00021221,2]
[373264483,1752925859003,-500.0,0.00021221,2]
[373264485,1752925859012,-1073.5549306,0.00021228,2]
[373264487,1752925859021,-504.5581182,0.00021228,2]
[373264489,1752925859030,-3000.0,0.0002123,2]
[373264491,1752925859040,-154.211266,0.0002123,2]
[373264493,1752925859050,-151.0,0.0002123,2]
[373264495,1752925859060,-151.0,0.0002123,2]
[373264497,1752925859069,-660.0,0.00021231,2]
[373264499,1752925859079,-3000.0,0.0002124,2]
[373264501,1752925859088,-3000.0,0.0002125,2]
[373264503,1752925859098,-150.074,0.00021257,2]
[373264505,1752925859107,-3000.0,0.0002126,2]
[373264507,1752925859116,-151.0,0.0002126,2]
[373264509,1752925859126,-151.0,0.0002126,2]
[373264511,1752925859135,-301.097827,0.0002126,2]
[373264513,1752925859145,-301.097827,0.0002126,2]
[373264515,1752925859155,-3000.0,0.0002127,2]
[373264517,1752925859165,-3000.0,0.0002128,2]
[373264519,1752925859174,-3000.0,0.0002129,2]
[373264521,1752925859185,-3000.0,0.000213,2]
[373264523,1752925859194,-1000.0,0.00021301,2]
[373264538,1752925859331,-194.0,0.00021307,2]
[373264541,1752925859345,-3000.0,0.0002131,2]
[373264543,1752925859355,-3000.0,0.0002132,2]
[373264545,1752925859364,-3000.0,0.0002133,2]
[373264547,1752925859374,-151.0,0.0002133,2]
[373264549,1752925859383,-151.0,0.0002133,2]
[373264551,1752925859393,-151.0,0.0002133,2]
[373264553,1752925859403,-153.370387,0.0002133,2]
[373264555,1752925859413,-223.0315306,0.00021333,2]
[373264557,1752925859423,-3000.0,0.0002134,2]
[373264559,1752925859433,-153.0,0.00021342,2]
[373264561,1752925859442,-153.0,0.00021342,2]
[373264563,1752925859452,-153.0,0.00021342,2]
[373264565,1752925859461,-153.0,0.00021342,2]
[373264567,1752925859470,-153.0,0.00021342,2]
[373264569,1752925859480,-153.0,0.00021342,2]
[373264571,1752925859490,-153.0,0.00021342,2]
[373264573,1752925859499,-153.0,0.00021342,2]
[373264575,1752925859509,-153.0,0.00021342,2]
[373264577,1752925859519,-153.0,0.00021342,2]
[373264579,1752925859530,-153.0,0.00021342,2]
[373264581,1752925859539,-153.0,0.00021342,2]
[373264583,1752925859549,-153.0,0.00021342,2]
[373264585,1752925859559,-3000.0,0.0002135,2]
[373264587,1752925859568,-3000.0,0.0002136,2]
[373264589,1752925859578,-3000.0,0.0002137,2]
[373264591,1752925859587,-3000.0,0.0002138,2]
[373264593,1752925859597,-151.0,0.0002138,2]
[373264595,1752925859606,-151.0,0.0002138,2]
[373264597,1752925859615,-151.0,0.0002138,2]
[373264599,1752925859625,-3000.0,0.0002139,2]
[373264601,1752925859635,-151.0,0.0002139,2]
[373264603,1752925859644,-194.0,0.00021398,2]
[373264606,1752925859656,-3000.0,0.000214,2]
[373264608,1752925859665,-3000.0,0.0002141,2]
[373264610,1752925859676,-151.0,0.0002141,2]
[373264612,1752925859685,-151.0,0.0002141,2]
[373264614,1752925859695,-269.533577,0.0002141,2]
[373264615,1752925859704,-269.533577,0.0002141,2]
[373264618,1752925859715,-3000.0,0.0002142,2]
[373264619,1752925859725,-3000.0,0.0002143,2]
[373264621,1752925859734,-3167.895784,0.0002144,2]
[373264624,1752925859744,-273.508892,0.00021486,2]
[373264626,1752925859754,-162.754641,0.00021486,2]
[373264628,1752925859767,-162.754641,0.00021486,2]
[373264630,1752925859777,-6652.08970238,0.00021486,5]
[373264631,1752925859786,-885.62,0.00021489,2]
[373264633,1752925859796,-1390.91,0.00021489,2]
[373264635,1752925859805,-151.0,0.0002149,2]
[373264638,1752925859815,-151.0,0.0002149,2]
[373264639,1752925859826,-460.0,0.0002149,2]
[373264642,1752925859836,-2041.8,0.0002149,2]
[373264644,1752925859846,-151.0,0.0002149,2]
[373264646,1752925859856,-151.0,0.0002149,2]
[373264648,1752925859866,-1525.65,0.0002149,2]
[373264650,1752925859875,-1361.02,0.0002149,2]
[373264652,1752925859886,-1619.42,0.0002149,2]
[373264654,1752925859896,-471.24,0.0002149,2]
[373264656,1752925859906,-682.29,0.0002149,2]
[373264658,1752925859916,-665.74,0.0002149,2]
[373264660,1752925859926,-692.91,0.0002149,2]
[373264662,1752925859936,-1750.3,0.00021491,2]
[373264664,1752925859945,-1046.46,0.00021491,2]
[373264666,1752925859961,-777.78,0.00021491,2]
[373264668,1752925859972,-621.82,0.00021491,2]
[373264670,1752925859982,-789.44,0.00021491,2]